bitfinex/quotes_SOLUSD_20250107
["timestamp","ask_amount","ask_price","bid_price","bid_amount"]
[1736236673317,8.99963535,216.08,216.01,8.99963535]
[1736236673504,8.99963535,216.09,216.03,8.99963535]
[1736236674000,8.99963535,216.1,216.04,8.99963535]
[1736236675320,8.99963535,216.09,216.04,8.99963535]
[1736236677013,11.5682,216.11,216.04,8.99963535]
[1736236677221,8.99963535,216.11,216.05,8.99963535]
[1736236677538,8.99963535,216.1,216.04,8.99963535]
[1736236678230,8.99963535,216.09,216.03,8.99963535]
[1736236678532,8.99963535,216.08,216.03,8.99963535]
[1736236679833,8.99963535,216.08,216.02,8.99963535]
[1736236680131,8.99963535,216.08,215.99,67.92]
[1736236680337,8.99963535,216.08,216.02,8.99963535]
[1736236691021,8.99963535,216.08,215.99,21.92]
[1736236691222,8.99963535,216.08,216.02,8.99963535]
[1736236692150,8.99963535,216.1,216.04,8.99963535]
[1736236700051,8.99963535,216.1,216.03,8.99963535]
[1736236704893,6.5159,216.17,216.07,8.99963535]
[1736236705077,8.99963535,216.19,216.13,8.99963535]
[1736236705258,30.0,216.14,216.13,8.99963535]
[1736236705454,30.0,216.14,216.07,20.0]
[1736236705774,30.0,216.14,216.11,8.99963535]
[1736236706183,8.99963535,216.17,216.11,8.99963535]
[1736236707282,1.5265,216.2,216.11,8.99963535]
[1736236707453,20.0,216.19,216.12,8.99963535]
[1736236707653,8.99963535,216.18,216.12,8.99963535]
[1736236708591,8.99963535,216.17,216.11,8.99963535]
[1736236709966,20.0,216.19,216.11,8.99963535]
[1736236710158,8.99963535,216.18,216.12,8.99963535]
[1736236715193,8.99963535,216.18,216.11,8.99963535]
[1736236716894,8.99963535,216.17,216.11,8.99963535]
[1736236717599,8.99963535,216.18,216.12,8.99963535]
[1736236718894,20.0,216.19,216.12,8.99963535]
[1736236719097,8.99963535,216.18,216.12,8.99963535]
[1736236720197,8.99963535,216.17,216.11,8.99963535]
[1736236720405,8.99963535,216.16,216.1,8.99963535]
[1736236721675,20.0,216.19,216.12,8.99963535]
[1736236721873,8.99963535,216.18,216.12,8.99963535]
[1736236722073,8.99963535,216.17,216.11,8.99963535]
[1736236723193,20.0,216.19,216.11,8.99963535]
[1736236723396,8.99963535,216.17,216.11,8.99963535]
[1736236723701,20.0,216.19,216.12,8.99963535]
[1736236723901,8.99963535,216.17,216.12,8.99963535]
[1736236724203,8.99963535,216.18,216.12,8.99963535]
[1736236724386,8.99963535,216.17,216.11,8.99963535]
[1736236725104,8.99963535,216.17,216.12,8.99963535]
[1736236725402,8.99963535,216.17,216.11,8.99963535]
[1736236737415,8.99963535,216.17,216.08,68.23505279]
[1736236737713,8.99963535,216.17,216.11,8.99963535]
[1736236738615,8.99963535,216.17,216.08,2.23505279]
[1736236739040,8.99963535,216.17,216.11,8.99963535]
[1736236741818,8.99963535,216.15,216.09,8.99963535]
[1736236742017,8.99963535,216.14,216.08,10.54073535]
[1736236743634,8.99963535,216.15,216.09,8.99963535]
[1736236744233,8.99963535,216.15,216.08,1.5411]
[1736236744436,8.99963535,216.15,216.09,8.99963535]
[1736236745210,8.99963535,216.16,216.1,8.99963535]
[1736236747135,8.99963535,216.16,216.08,1.5411]
[1736236747315,8.99963535,216.16,216.1,8.99963535]
[1736236755359,8.99963535,216.15,216.09,8.99963535]
[1736236757144,8.99963535,216.15,216.08,1.5411]
[1736236757465,8.99963535,216.15,216.09,8.99963535]
[1736236759562,23.776884,216.15,216.1,8.99963535]
[1736236759754,21.5265,216.19,216.11,8.99963535]
[1736236760064,8.99963535,216.17,216.11,8.99963535]
[1736236763754,20.0,216.19,216.12,8.99963535]
[1736236763755,8.99963535,216.18,216.12,8.99963535]
[1736236764064,23.776884,216.18,216.13,8.99963535]
[1736236766159,8.99963535,216.18,216.12,8.99963535]
[1736236768887,8.99963535,216.18,216.08,68.23507775]
[1736236769065,8.99963535,216.18,216.11,8.99963535]
[1736236771190,8.99963535,216.17,216.11,8.99963535]
[1736236773486,8.99963535,216.17,216.08,67.5411]
[1736236773687,8.99963535,216.16,216.09,8.99963535]
[1736236773981,8.99963535,216.15,216.08,10.54073535]
[1736236774193,8.99963535,216.14,216.08,1.5411]
[1736236774493,8.99963535,216.15,216.09,8.99963535]
[1736236776689,23.776884,216.19,216.09,8.99963535]
[1736236776984,6.1862,216.2,216.09,8.99963535]
[1736236776985,23.776884,216.15,216.09,8.99963535]
[1736236777186,23.776884,216.15,216.08,1.5411]
[1736236777388,23.776884,216.15,216.09,8.99963535]
[1736236778185,8.99963535,216.15,216.08,1.5411]
[1736236778493,8.99963535,216.15,216.09,8.99963535]
[1736236780086,1.9,216.19,216.1,8.99963535]
[1736236780284,8.99963535,216.17,216.11,8.99963535]
[1736236780494,8.99963535,216.16,216.1,8.99963535]
[1736236783888,23.776884,216.18,216.11,8.99963535]
[1736236784105,23.776884,216.18,216.13,8.99963535]
[1736236784271,8.99963535,216.17,216.11,8.99963535]
[1736236784604,32.77651935,216.18,216.12,8.99963535]
[1736236784910,8.99963535,216.17,216.11,8.99963535]
[1736236793046,23.776884,216.2,216.11,8.99963535]
[1736236793332,13.4633,216.21,216.13,8.99963535]
[1736236793636,23.776884,216.18,216.12,8.99963535]
[1736236794341,8.99963535,216.19,216.12,8.99963535]
[1736236794541,32.77651935,216.2,216.13,8.99963535]
[1736236795231,8.99963535,216.19,216.13,8.99963535]
[1736236797634,32.77651935,216.2,216.13,8.99963535]
[1736236798435,32.77651935,216.2,216.14,8.99963535]
[1736236798604,8.99963535,216.2,216.14,8.99963535]
[1736236799131,8.99963535,216.2,216.1,6.2024]
[1736236799437,8.99963535,216.2,216.14,8.99963535]
[1736236800343,31.5624,216.22,216.1,6.2024]
[1736236800344,23.776884,216.22,216.16,8.99963535]
[1736236800545,32.77651935,216.22,216.16,8.99963535]
[1736236800851,8.99963535,216.21,216.14,8.99963535]
[1736236801219,23.776884,216.2,216.14,8.99963535]
[1736236801661,23.776884,216.2,216.1,6.2024]
[1736236801855,23.776884,216.2,216.15,8.99963535]
[1736236802350,23.776884,216.24,216.17,8.99963535]
[1736236802519,32.77651935,216.24,216.17,8.99963535]
[1736236802830,8.99963535,216.23,216.17,8.99963535]
[1736236804041,23.776884,216.24,216.17,8.99963535]
[1736236804245,8.99963535,216.23,216.13,20.0]
[1736236804432,8.99963535,216.23,216.17,8.99963535]
[1736236804853,23.776884,216.24,216.17,8.99963535]
[1736236805263,32.77651935,216.24,216.17,8.99963535]
[1736236805456,32.77651935,216.24,216.13,20.0]
[1736236805761,23.776884,216.24,216.17,8.99963535]
[1736236805943,1.9,216.28,216.19,8.99963535]
[1736236806138,11.5588,216.29,216.19,8.99963535]
[1736236806343,8.99963535,216.25,216.19,8.99963535]
[1736236806660,8.99963535,216.26,216.2,8.99963535]
[1736236807036,20.0,216.3,216.2,8.99963535]
[1736236807231,8.99963535,216.23,216.17,1.5479]
[1736236807417,8.99963535,216.22,216.17,1.5479]
[1736236807859,8.99963535,216.23,216.17,10.54753535]
[1736236809054,8.99963535,216.24,216.18,8.99963535]
[1736236809560,8.99963535,216.23,216.17,10.54753535]
[1736236812284,8.99963535,216.24,216.18,8.99963535]
[1736236812882,113.8583,216.3,216.19,8.99963535]
[1736236813070,8.99963535,216.26,216.2,8.99963535]
[1736236813270,1.9,216.29,216.18,8.99963535]
[1736236813271,8.99963535,216.25,216.18,8.99963535]
[1736236813454,8.99963535,216.25,216.19,8.99963535]
[1736236814682,113.8583,216.3,216.2,8.99963535]
[1736236814989,8.99963535,216.27,216.21,8.99963535]
[1736236815147,8.99963535,216.24,216.19,8.99963535]
[1736236815764,8.99963535,216.24,216.17,1.5479]
[1736236815998,23.776884,216.29,216.18,8.99963535]
[1736236816201,8.99963535,216.24,216.18,8.99963535]
[1736236816397,8.99963535,216.21,216.17,1.5479]
[1736236816865,23.776884,216.29,216.17,1.5479]
[1736236816866,8.99963535,216.22,216.17,1.5479]
[1736236817478,8.99963535,216.21,216.15,6.1088]
[1736236817680,8.99963535,216.19,216.13,21.6627]
[1736236817879,8.99963535,216.19,216.13,30.66233535]
[1736236818185,8.99963535,216.18,216.13,1.6627]
[1736236818391,8.99963535,216.16,216.13,1.6627]
[1736236818594,8.99963535,216.15,216.1,6.1581]
[1736236818892,8.99963535,216.16,216.1,15.15773535]
[1736236820981,8.99963535,216.15,216.09,8.99963535]
[1736236821297,8.99963535,216.14,216.08,1.5058]
[1736236821491,8.99963535,216.11,216.08,1.5058]
[1736236822204,1.9,216.17,216.08,1.5058]
[1736236822205,8.99963535,216.12,216.08,1.5058]
[1736236822700,8.99963535,216.15,216.09,8.99963535]
[1736236822901,8.99963535,216.16,216.1,8.99963535]
[1736236823216,30.89963535,216.17,216.11,8.99963535]
[1736236823376,21.9,216.17,216.11,8.99963535]
[1736236823577,21.00036465,216.11,216.08,1.5058]
[1736236823905,21.00036465,216.11,216.1,8.99963535]
[1736236824803,51.00036465,216.11,216.1,8.99963535]
[1736236825185,51.00036465,216.11,216.09,8.99963535]
[1736236825602,51.00036465,216.11,216.08,1.5058]
[1736236825812,30.0,216.1,216.04,6.443]
[1736236825990,30.0,216.1,216.05,8.99963535]
[1736236826192,38.99963535,216.1,216.04,15.44263535]
[1736236826396,30.0,216.1,216.07,8.99963535]
[1736236826607,30.0,216.1,216.08,8.99963535]
[1736236826905,30.0,216.1,216.09,8.99963535]
[1736236827597,30.0,216.1,216.08,8.99963535]
[1736236827918,21.00036465,216.11,216.09,8.99963535]
[1736236828121,21.00036465,216.11,216.1,8.99963535]
[1736236830188,21.00036465,216.11,216.09,8.99963535]
[1736236830928,21.00036465,216.11,216.1,8.99963535]
[1736236833140,21.00036465,216.11,216.09,8.99963535]
[1736236834046,21.00036465,216.11,216.1,66.0]
[1736236836747,21.00036465,216.11,216.1,74.99963535]
[1736236837650,51.00036465,216.11,216.1,74.99963535]
[1736236841956,51.00036465,216.11,216.1,66.0]
[1736236844151,21.00036465,216.11,216.1,66.0]
[1736236844666,21.00036465,216.11,216.1,74.99963535]
[1736236850959,21.00036465,216.11,216.1,66.0]
[1736236854578,21.00036465,216.11,216.1,74.99963535]
[1736236864597,21.00036465,216.11,216.1,75.69355592]
[1736236864779,0.00036465,216.11,216.1,15.85015592]
[1736236865170,0.00036465,216.11,216.1,39.75252992]
[1736236865369,8.99963535,216.25,216.15,1.567]
[1736236865565,8.99963535,216.25,216.19,8.99963535]
[1736236867166,8.99963535,216.25,216.18,8.99963535]
[1736236867464,8.99963535,216.24,216.18,8.99963535]
[1736236867701,8.99963535,216.24,216.21,45.0]
[1736236868731,8.99963535,216.22,216.21,45.0]
[1736236870117,8.99963535,216.22,216.13,8.99963535]
[1736236870297,8.99963535,216.19,216.13,28.99963535]
[1736236870495,8.99963535,216.19,216.13,20.0]
[1736236870698,8.99963535,216.19,216.13,28.99963535]
[1736236870895,8.99963535,216.19,216.1,7.6905]
[1736236871100,8.99963535,216.17,216.11,8.99963535]
[1736236871413,8.99963535,216.16,216.1,10.53353535]
[1736236872896,8.99963535,216.16,216.11,45.0]
[1736236873207,8.99963535,216.17,216.11,45.0]
[1736236873728,8.99963535,216.17,216.11,53.99963535]
[1736236875222,23.776884,216.21,216.11,45.0]
[1736236875223,8.99963535,216.16,216.11,45.0]
[1736236875518,8.99963535,216.15,216.11,45.0]
[1736236875692,8.99963535,216.16,216.11,53.99963535]
[1736236876219,8.99963535,216.15,216.11,45.0]
[1736236876396,8.99963535,216.13,216.08,8.99963535]
[1736236877118,8.99963535,216.14,216.08,8.99963535]
[1736236877616,8.99963535,216.14,216.09,8.99963535]
[1736236877914,8.99963535,216.15,216.09,8.99963535]
[1736236878617,8.99963535,216.15,216.1,8.99963535]
[1736236878825,8.99963535,216.17,216.11,8.99963535]
[1736236879344,8.99963535,216.17,216.11,53.99963535]
[1736236881534,32.77651935,216.19,216.13,8.99963535]
[1736236881994,6.6165,216.22,216.16,8.99963535]
[1736236882203,8.99963535,216.22,216.16,8.99963535]
[1736236882827,23.776884,216.21,216.16,8.99963535]
[1736236883135,8.99963535,216.21,216.15,8.99963535]
[1736236884028,8.99963535,216.21,216.14,8.99963535]
[1736236884633,8.99963535,216.2,216.14,8.99963535]
[1736236885117,8.99963535,216.2,216.15,45.0]
[1736236886344,8.99963535,216.19,216.15,45.0]
[1736236887450,8.99963535,216.19,216.08,1.92]
[1736236887621,8.99963535,216.17,216.11,8.99963535]
[1736236887821,8.99963535,216.18,216.12,8.99963535]
[1736236890528,8.99963535,216.19,216.13,8.99963535]
[1736236891026,23.776884,216.22,216.14,8.99963535]
[1736236891228,8.99963535,216.2,216.14,8.99963535]
[1736236891428,8.99963535,216.19,216.13,8.99963535]
[1736236893955,8.99963535,216.19,216.14,45.0]
[1736236894460,8.99963535,216.18,216.14,45.0]
[1736236899470,8.99963535,216.17,216.14,45.0]
[1736236899637,8.99963535,216.17,216.11,8.99963535]
[1736236902064,23.776884,216.22,216.12,8.99963535]
[1736236902362,8.99963535,216.18,216.12,8.99963535]
[1736236902656,8.99963535,216.18,216.13,45.0]
[1736236905270,8.99963535,216.16,216.05,9.49552645]
[1736236905437,8.99963535,216.15,216.09,8.99963535]
[1736236905640,8.99963535,216.14,216.08,8.99963535]
[1736236905845,8.99963535,216.15,216.09,8.99963535]
[1736236906563,8.99963535,216.15,216.07,20.0]
[1736236906772,8.99963535,216.12,216.05,1.5236]
[1736236906953,8.99963535,216.12,216.06,8.99963535]
[1736236907146,8.99963535,216.11,216.05,10.52323535]
[1736236907349,8.99963535,216.12,216.06,8.99963535]
[1736236908281,8.99963535,216.12,216.07,45.0]
[1736236908653,8.99963535,216.13,216.07,53.99963535]
[1736236910976,8.99963535,216.12,216.07,45.0]
[1736236912875,8.9439415,216.12,216.07,45.0]
[1736236913175,8.99963535,216.1,216.07,45.0]
[1736236913388,8.99963535,216.1,216.0,8.87266374]
[1736236913563,8.99963535,216.09,216.02,8.99963535]
[1736236913763,8.99963535,216.09,216.03,8.99963535]
[1736236914068,71.3414254,216.15,216.04,8.99963535]
[1736236914069,8.99963535,216.1,216.04,8.99963535]
[1736236914268,28.99963535,216.12,216.05,8.99963535]
[1736236914471,28.99963535,216.12,216.06,8.99963535]
[1736236914885,8.99963535,216.09,216.0,1.5947]
[1736236915051,8.99963535,216.08,216.02,8.99963535]
[1736236915772,20.0,216.12,216.0,1.5947]
[1736236915773,8.99963535,216.09,216.03,8.99963535]
[1736236916346,8.99963535,216.09,216.03,53.99963535]
[1736236916893,8.99963535,216.1,216.04,8.99963535]
[1736236919775,8.99963535,216.09,216.04,8.99963535]
[1736236919970,23.776884,216.11,216.04,8.99963535]
[1736236920176,8.99963535,216.09,216.03,8.99963535]
[1736236921908,8.99963535,216.08,216.03,8.99963535]
[1736236922569,8.99963535,216.08,216.04,45.0]
[1736236923091,20.0,216.12,216.06,8.99963535]
[1736236923595,28.99963535,216.12,216.06,8.99963535]
[1736236925198,28.99963535,216.13,216.07,8.99963535]
[1736236925585,8.99963535,216.11,216.05,8.99963535]
[1736236925786,8.99963535,216.11,216.04,8.99963535]
[1736236926099,8.99963535,216.11,216.07,45.0]
[1736236930677,8.99963535,216.1,216.07,45.0]
[1736236930882,8.99963535,216.1,216.04,8.99963535]
[1736236933404,8.99963535,216.1,216.0,2.28887383]
[1736236933596,8.99963535,216.1,216.04,8.99963535]
[1736236933799,8.99963535,216.1,216.06,45.0]
[1736236934186,8.99963535,216.07,216.01,8.99963535]
[1736236934393,23.776884,216.12,216.0,10.59433535]
[1736236934394,8.99963535,216.06,216.0,10.59433535]
[1736236935299,8.99963535,216.04,216.0,1.5947]
[1736236935492,8.99963535,216.04,215.98,8.99963535]
[1736236937202,8.99963535,216.04,216.01,45.0]
[1736236937513,8.99963535,216.08,216.02,8.99963535]
[1736236940701,8.99963535,216.08,216.03,45.0]
[1736236942926,8.99963535,216.07,216.03,45.0]
[1736236943089,8.99963535,216.08,216.03,45.0]
[1736236944629,8.99963535,216.07,216.03,45.0]
[1736236952207,8.99963535,216.06,216.03,45.0]
[1736236952407,8.99963535,216.05,216.03,45.0]
[1736236953017,8.99963535,216.05,215.99,8.99963535]
[1736236953526,8.99963535,216.05,216.0,8.99963535]
[1736236955729,8.99963535,216.06,216.0,8.99963535]
[1736236956230,8.99963535,216.06,216.02,45.0]
[1736236957202,23.776884,216.11,215.96,0.69427492]
[1736236957203,8.99963535,216.05,215.99,8.99963535]
[1736236957405,8.99963535,216.04,215.96,0.69427492]
[1736236957741,8.99963535,216.04,215.99,8.99963535]
[1736236957908,8.99963535,216.03,215.98,8.99963535]
[1736236958643,23.776884,216.04,215.99,8.99963535]
[1736236960140,23.776884,216.04,216.0,45.0]
[1736236960321,8.99963535,216.05,216.0,45.0]
[1736236961533,1.92,216.08,216.0,45.0]
[1736236961734,8.99963535,216.05,216.0,45.0]
[1736236962235,23.776884,216.09,216.0,8.99963535]
[1736236962420,8.99963535,216.06,216.0,8.99963535]
[1736236965343,8.99963535,216.05,216.01,45.0]
[1736236967744,25.696884,216.09,216.01,45.0]
[1736236967946,8.99963535,216.05,216.01,45.0]
[1736236968447,8.99963535,216.05,215.99,8.99963535]
[1736236971626,8.99963535,216.05,215.99,53.99963535]
[1736236973354,25.696884,216.09,215.99,53.99963535]
[1736236973559,8.99963535,216.05,215.99,53.99963535]
[1736236974837,8.99963535,216.04,215.99,45.0]
[1736236977454,8.99963535,216.05,215.99,53.99963535]
[1736236982562,8.99963535,216.05,215.99,45.0]
[1736236983759,25.696884,216.09,215.99,53.99963535]
[1736236983939,8.99963535,216.05,215.99,8.99963535]
[1736236986840,8.99963535,216.05,215.99,53.99963535]
[1736236987562,8.99963535,216.05,215.99,45.0]
[1736236990959,23.776884,216.04,215.98,8.99963535]
[1736236991277,23.776884,216.04,215.96,8.99963535]
[1736236991439,8.99963535,216.03,215.97,8.99963535]
[1736236992268,8.99963535,216.02,215.96,8.99963535]
[1736236992565,23.776884,216.06,215.96,8.99963535]
[1736236992750,8.99963535,216.02,215.96,8.99963535]
[1736236993469,23.776884,216.06,215.96,8.99963535]
[1736236993651,8.99963535,216.02,215.96,8.99963535]
[1736236994565,8.99963535,216.02,215.95,1.5723]
[1736236994759,8.99963535,216.01,215.95,10.57193535]
[1736236996288,8.99963535,216.02,215.96,8.99963535]
[1736237000088,23.776884,216.04,215.97,8.99963535]
[1736237000379,32.77651935,216.04,215.98,8.99963535]
[1736237000585,8.99963535,216.03,215.97,8.99963535]
[1736237002081,8.99963535,216.03,215.95,1.5723]
[1736237002264,8.99963535,216.03,215.97,8.99963535]
[1736237003488,32.77651935,216.04,215.98,8.99963535]
[1736237003782,23.776884,216.04,215.98,8.99963535]
[1736237004184,23.776884,216.04,215.99,8.99963535]
[1736237006193,11.5687,216.1,216.01,8.99963535]
[1736237006380,1.92,216.08,216.01,8.99963535]
[1736237006695,43.776884,216.07,216.02,8.99963535]
[1736237007688,11.5687,216.1,216.02,8.99963535]
[1736237007887,11.567,216.14,216.01,1.5053]
[1736237008093,22.48663535,216.14,216.08,8.99963535]
[1736237008278,11.565,216.17,216.08,8.99963535]
[1736237008594,20.0,216.14,216.02,0.69416175]
[1736237008795,28.99963535,216.14,216.08,8.99963535]
[1736237009400,23.776884,216.13,216.08,8.99963535]
[1736237013501,8.99963535,216.12,216.06,8.99963535]
[1736237014893,8.99963535,216.11,216.05,8.99963535]
[1736237017697,23.776884,216.09,216.01,1.5053]
[1736237017899,8.99963535,216.08,216.02,8.99963535]
[1736237018477,8.99963535,216.09,216.03,8.99963535]
[1736237024706,8.99963535,216.08,216.02,8.99963535]
[1736237024904,8.99963535,216.06,216.01,1.5053]
[1736237025110,8.99963535,216.05,216.01,1.5053]
[1736237025599,8.99963535,216.06,216.01,1.5053]
[1736237026815,23.776884,216.11,216.01,1.5053]
[1736237027030,8.99963535,216.06,216.01,1.5053]
[1736237028418,8.99963535,216.05,216.01,1.5053]
[1736237030016,8.99963535,216.06,216.01,1.5053]
[1736237030194,8.99963535,216.07,216.01,10.50493535]
[1736237030521,8.99963535,216.08,216.02,8.99963535]
[1736237031620,8.99963535,216.08,216.07,45.0]
[1736237033532,8.99963535,216.09,216.07,45.0]
[1736237033848,8.99963535,216.09,216.03,8.99963535]
[1736237034005,8.99963535,216.1,216.04,8.99963535]
[1736237036832,8.99963535,216.1,216.09,45.0]
[1736237051342,8.99963535,216.1,216.03,8.99963535]
[1736237054533,8.99963535,216.1,216.09,45.0]
[1736237056051,21.92,216.12,216.09,45.0]
[1736237056355,8.99963535,216.1,216.09,45.0]
[1736237057948,8.99963535,216.1,216.03,8.99963535]
[1736237059545,8.99963535,216.1,216.04,8.99963535]
[1736237060253,8.99963535,216.11,216.04,8.99963535]
[1736237060554,8.99963535,216.11,216.03,8.99963535]
[1736237060936,8.99963535,216.11,216.1,45.0]
[1736237062755,20.0,216.12,216.1,45.0]
[1736237062953,8.99963535,216.11,216.03,8.99963535]
[1736237063460,20.0,216.12,216.01,1.5053]
[1736237063627,8.99963535,216.1,216.01,1.5053]
[1736237063821,8.99963535,216.1,216.02,8.99963535]
[1736237065969,8.99963535,216.1,216.09,45.0]
[1736237066135,11.566,216.15,216.09,45.0]
[1736237066464,1.92,216.18,216.09,8.99963535]
[1736237066757,11.5644,216.19,216.09,8.99963535]
[1736237066959,8.99963535,216.16,216.1,8.99963535]
[1736237067145,8.99963535,216.17,216.1,8.99963535]
[1736237067333,13.4844,216.19,216.1,8.99963535]
[1736237067533,8.99963535,216.16,216.1,8.99963535]
[1736237069438,8.99963535,216.16,216.15,45.0]
[1736237087908,8.99963535,216.16,216.09,8.99963535]
[1736237088089,13.4844,216.19,216.08,8.99963535]
[1736237088090,8.99963535,216.14,216.08,8.99963535]
[1736237088291,8.99963535,216.14,216.07,6.6547]
[1736237088509,8.99963535,216.14,216.08,8.99963535]
[1736237090903,8.99963535,216.14,216.13,45.0]
[1736237095102,23.776884,216.18,216.13,45.0]
[1736237095307,8.99963535,216.15,216.09,8.99963535]
[1736237098209,8.99963535,216.15,216.14,45.0]
[1736237102115,32.77651935,216.15,216.14,45.0]
[1736237103220,32.77651935,216.15,216.05,10.58093535]
[1736237103422,8.99963535,216.11,216.05,10.58093535]
[1736237103724,8.99963535,216.11,216.06,8.99963535]
[1736237104026,8.99963535,216.12,216.06,8.99963535]
[1736237104823,8.99963535,216.13,216.07,8.99963535]
[1736237105132,8.99963535,216.12,216.06,8.99963535]
[1736237106315,8.99963535,216.12,216.11,45.0]
[1736237107023,8.99963535,216.13,216.11,45.0]
[1736237107799,8.99963535,216.13,216.07,8.99963535]
[1736237108736,8.99963535,216.12,216.05,1.5813]
[1736237109029,8.99963535,216.12,216.05,10.58093535]
[1736237109200,8.99963535,216.13,216.07,8.99963535]
[1736237109400,8.99963535,216.12,216.06,8.99963535]
[1736237110326,23.776884,216.15,216.06,8.99963535]
[1736237110626,8.99963535,216.13,216.07,8.99963535]
[1736237110818,8.99963535,216.13,216.12,45.0]
[1736237113134,8.99963535,216.13,216.05,1.5813]
[1736237113343,23.776884,216.14,216.05,1.5813]
[1736237113344,8.99963535,216.09,216.05,1.5813]
[1736237113831,8.99963535,216.09,216.03,8.99963535]
[1736237113832,8.99963535,216.07,216.02,13.31866374]
[1736237114003,8.99963535,216.06,216.02,13.31866374]
[1736237114318,8.99963535,216.05,216.02,7.27796374]
[1736237114720,8.99963535,216.04,216.02,7.27796374]
[1736237114924,8.99963535,216.03,216.02,7.27796374]
[1736237115111,8.99963535,216.03,216.0,16.18242748]
[1736237115112,8.99963535,216.03,216.0,1.6265]
[1736237115314,8.99963535,216.03,215.97,22.52829909]
[1736237115702,8.99963535,216.03,215.97,15.25033535]
[1736237116021,8.99963535,216.03,216.02,45.0]
[1736237116524,8.99963535,216.04,216.02,45.0]
[1736237116732,8.99963535,216.04,215.98,8.99963535]
[1736237117423,8.99963535,216.05,215.99,8.99963535]
[1736237117612,23.776884,216.09,215.99,8.99963535]
[1736237117812,8.99963535,216.05,215.99,8.99963535]
[1736237118133,8.99963535,216.04,215.97,6.2507]
[1736237118309,8.99963535,216.04,215.98,8.99963535]
[1736237119608,8.99963535,216.04,216.02,45.0]
[1736237120132,23.776884,216.09,216.02,45.0]
[1736237120133,8.99963535,216.05,216.02,45.0]
[1736237121731,8.99963535,216.04,216.02,45.0]
[1736237122911,8.99963535,216.05,216.02,45.0]
[1736237124108,8.99963535,216.05,215.99,8.99963535]
[1736237127151,8.99963535,216.05,216.0,45.0]
[1736237129742,8.99963535,216.05,215.99,8.99963535]
[1736237130639,28.99963535,216.06,216.0,8.99963535]
[1736237131632,28.99963535,216.06,215.97,6.2507]
[1736237131911,28.99963535,216.06,216.0,8.99963535]
[1736237132118,8.99963535,216.06,216.0,8.99963535]
[1736237132739,8.99963535,216.06,216.02,45.0]
[1736237133944,8.99963535,216.05,216.02,45.0]
[1736237136836,8.99963535,216.04,216.02,45.0]
[1736237137047,8.99963535,216.04,215.98,8.99963535]
[1736237137428,8.99963535,216.02,215.96,8.99963535]
[1736237137651,8.99963535,216.01,215.96,8.99963535]
[1736237137859,8.99963535,216.04,215.98,8.99963535]
[1736237138062,8.99963535,216.05,215.99,8.99963535]
[1736237138551,23.776884,216.05,215.99,8.99963535]
[1736237139742,32.77651935,216.05,215.99,8.99963535]
[1736237140050,32.77651935,216.05,215.99,53.99963535]
[1736237140453,23.776884,216.05,215.99,53.99963535]
[1736237140628,32.77651935,216.05,215.99,53.99963535]
[1736237141128,32.77651935,216.05,215.99,8.99963535]
[1736237142337,20.0,216.06,216.01,8.99963535]
[1736237142534,8.99963535,216.08,216.02,8.99963535]
[1736237142734,20.0,216.09,216.02,8.99963535]
[1736237142935,28.99963535,216.09,216.03,8.99963535]
[1736237143250,20.0,216.09,216.04,8.99963535]
[1736237143949,20.0,216.09,216.05,45.0]
[1736237145154,1.92,216.14,216.05,45.0]
[1736237145155,8.99963535,216.1,216.05,45.0]
[1736237151860,8.99963535,216.09,216.05,45.0]
[1736237155866,8.99963535,216.09,216.04,8.99963535]
[1736237158961,8.99963535,216.09,216.04,53.99963535]
[1736237159463,8.99963535,216.1,216.04,8.99963535]
[1736237159788,23.776884,216.13,216.06,8.99963535]
[1736237159945,8.99963535,216.13,216.07,8.99963535]
[1736237160672,20.0,216.14,216.07,8.99963535]
[1736237160885,8.99963535,216.13,216.07,8.99963535]
[1736237162443,8.99963535,216.13,216.07,53.99963535]
[1736237162871,1.5265,216.16,216.08,8.99963535]
[1736237163185,8.99963535,216.15,216.08,8.99963535]
[1736237163473,32.77651935,216.15,216.08,8.99963535]
[1736237163660,23.776884,216.15,216.08,8.99963535]
[1736237163848,32.77651935,216.15,216.08,8.99963535]
[1736237165953,28.99963535,216.14,216.09,45.0]
[1736237166470,8.99963535,216.13,216.09,45.0]
[1736237167251,28.99963535,216.14,216.09,45.0]
[1736237171297,28.99963535,216.14,216.08,8.99963535]
[1736237174390,8.99963535,216.13,216.08,45.0]
[1736237174686,8.99963535,216.12,216.08,45.0]
[1736237174887,8.99963535,216.13,216.08,45.0]
[1736237177195,8.99963535,216.1,216.04,6.124]